fUSD/lending_fUSD_20260108
["ID","MTS","AMOUNT","RATE_DAILY","PERIOD"]
[401069062,1767901834488,-198.4,0.00011931,2]
[401069064,1767901834497,-206.0,0.00011942,2]
[401069066,1767901834506,-195.0,0.00011974,2]
[401069068,1767901834515,-300.0,0.00011974,2]
[401069070,1767901834524,-195.0,0.00011974,2]
[401069072,1767901834534,-300.0,0.00011974,2]
[401069074,1767901834543,-250.0,0.00011974,2]
[401069076,1767901834552,-195.0,0.00011974,2]
[401069078,1767901834562,-166.66,0.00012054,2]
[401069080,1767901834572,-627.74,0.00012104,2]
[401069082,1767901834581,-320.98726626,0.00012312,2]
[401069084,1767901834591,-250.0,0.00012312,2]
[401069086,1767901834600,-300.0,0.00012312,2]
[401069088,1767901834610,-2253.38639597,0.00012328,2]
[401069090,1767901834623,-7361.92289423,0.00012328,2]
[401069092,1767901834634,-1932.64807024,0.00012328,2]
[401069094,1767901834646,-522.77096498,0.00012328,2]
[401069096,1767901834657,-899.86519061,0.00012328,2]
[401069102,1767901834696,-101.58563456,0.00012328,2]
[401069104,1767901834705,-166.66,0.00012329,2]
[401069105,1767901834714,-627.74,0.00012378,2]
[401069106,1767901834723,-166.66,0.00012452,2]
[401069107,1767901834732,-166.66,0.00012452,2]
[401069108,1767901834742,-166.66,0.00012575,2]
[401069109,1767901834751,-557.37957025,0.0001262,2]
[401069110,1767901834760,-627.74,0.00012652,2]
[401069111,1767901834770,-420.0,0.00012691,2]
[401069112,1767901834780,-166.66,0.00012699,2]
[401069113,1767901834789,-1680.0,0.00012711,2]
[401069114,1767901834799,-166.66,0.00012822,2]
[401069115,1767901834808,-166.66,0.0001285,2]
[401069116,1767901834817,-435.75756433,0.00012919,2]
[401069117,1767901834826,-627.78,0.00012926,2]
[401069118,1767901834835,-166.66,0.00012945,2]
[401069119,1767901834844,-13072.17915059,0.00013025,2]
[401069120,1767901834853,-166.66,0.00013248,2]
[401069121,1767901834862,-3240.0,0.00013425,2]
[401069122,1767901834872,-166.66,0.00013646,2]
[401069123,1767901834881,-557.37957025,0.00013676,2]
[401069124,1767901834890,-500.0,0.00013698,2]
[401069125,1767901834900,-500.0,0.00013698,2]
[401069126,1767901834909,-500.0,0.00013698,2]
[401069127,1767901834920,-500.0,0.00013698,2]
[401069128,1767901834930,-500.0,0.00013698,2]
[401069129,1767901834939,-502.10445571,0.00013698,2]
[401069130,1767901834948,-500.0,0.00013698,2]
[401069131,1767901834958,-500.0,0.00013698,2]
[401069132,1767901834968,-500.0,0.00013698,2]
[401069133,1767901834978,-500.0,0.00013698,2]
[401069134,1767901834987,-500.0,0.00013698,2]
[401069135,1767901834998,-500.0,0.00013698,2]
[401069136,1767901835008,-500.0,0.00013698,2]
[401069137,1767901835017,-500.0,0.00013698,2]
[401069138,1767901835026,-174.0797667,0.00013698,2]
[401069139,1767901835036,-500.0,0.00013698,2]
[401069140,1767901835045,-414.08933578,0.00013698,2]
[401069141,1767901835055,-500.0,0.00013698,2]
[401069142,1767901835065,-500.0,0.00013698,2]
[401069143,1767901835074,-500.0,0.00013698,2]
[401069144,1767901835083,-500.0,0.00013698,2]
[401069145,1767901835093,-500.0,0.00013698,2]
[401069146,1767901835102,-500.0,0.00013698,2]
[401069147,1767901835111,-500.0,0.00013698,2]
[401069148,1767901835121,-500.0,0.00013698,2]
[401069149,1767901835130,-500.0,0.00013698,2]
[401069150,1767901835139,-500.0,0.00013698,2]
[401069151,1767901835150,-500.0,0.00013698,2]
[401069152,1767901835160,-500.0,0.00013698,2]
[401069153,1767901835169,-500.0,0.00013698,2]
[401069154,1767901835180,-500.0,0.00013698,2]
[401069155,1767901835189,-500.0,0.00013698,2]
[401069156,1767901835199,-500.0,0.00013698,2]
[401069157,1767901835210,-610.79386728,0.00013698,2]
[401069158,1767901835221,-500.0,0.00013698,2]
[401069159,1767901835231,-500.0,0.00013698,2]
[401069160,1767901835240,-113.57399212,0.00013698,2]
[401069161,1767901835260,-411.45726822,0.00013698,2]
[401069162,1767901835270,-1093.33,0.00013698,2]
[401069163,1767901835280,-1093.33,0.00013698,2]
[401069164,1767901835289,-1093.33,0.00013698,2]
[401069165,1767901835298,-1093.33,0.00013698,2]
[401069166,1767901835307,-500.0,0.00013698,2]
[401069167,1767901835317,-514.71165586,0.00013698,2]
[401069168,1767901835326,-500.0,0.00013698,2]
[401069169,1767901835335,-548.94161459,0.00013698,2]
[401069170,1767901835344,-500.0,0.00013698,2]
[401069171,1767901835354,-500.0,0.00013698,2]
[401069172,1767901835363,-500.0,0.00013698,2]
[401069173,1767901835372,-500.0,0.00013698,2]
[401069174,1767901835381,-500.0,0.00013698,2]
[401069175,1767901835391,-500.0,0.00013698,2]
[401069176,1767901835400,-500.0,0.00013698,2]
[401069177,1767901835409,-500.0,0.00013698,2]
[401069178,1767901835419,-537.05653843,0.00013698,2]
[401069179,1767901835428,-500.0,0.00013698,2]
[401069180,1767901835437,-321.10769147,0.00013698,2]
[401069181,1767901835446,-500.0,0.00013698,2]
[401069182,1767901835456,-500.0,0.00013698,2]
[401069183,1767901835465,-500.0,0.00013698,2]
[401069184,1767901835474,-500.0,0.00013698,2]
[401069185,1767901835483,-500.0,0.00013698,2]
[401069186,1767901835492,-500.0,0.00013698,2]
[401069187,1767901835502,-500.0,0.00013698,2]
[401069188,1767901835512,-213.59218615,0.00013698,2]
[401069189,1767901835522,-500.0,0.00013698,2]
[401069190,1767901835531,-585.83,0.00013698,2]
[401069191,1767901835540,-585.83,0.00013698,2]
[401069192,1767901835549,-585.83,0.00013698,2]
[401069193,1767901835559,-585.83,0.00013698,2]
[401069194,1767901835569,-585.83,0.00013698,2]
[401069195,1767901835578,-500.0,0.00013698,2]
[401069196,1767901835589,-500.0,0.00013698,2]
[401069197,1767901835599,-500.0,0.00013698,2]
[401069198,1767901835610,-500.0,0.00013698,2]
[401069199,1767901835619,-500.0,0.00013698,2]
[401069200,1767901835629,-500.0,0.00013698,2]
[401069201,1767901835639,-500.0,0.00013698,2]
[401069202,1767901835648,-621.72362606,0.00013698,2]
[401069203,1767901835657,-500.0,0.00013698,2]
[401069204,1767901835666,-500.0,0.00013698,2]
[401069205,1767901835675,-500.0,0.00013698,2]
[401069206,1767901835685,-500.0,0.00013698,2]
[401069207,1767901835695,-196.64,0.00013699,2]
[401069208,1767901835704,-200.0,0.00013699,2]
[401069209,1767901835714,-13072.17915059,0.00013721,2]
[401069210,1767901835723,-522.96995118,0.00013864,2]
[401069211,1767901835733,-500.0,0.00013864,2]
[401069212,1767901835743,-500.0,0.00013864,2]
[401069213,1767901835752,-500.0,0.00013864,2]
[401069214,1767901835761,-500.0,0.00013864,2]
[401069215,1767901835771,-500.0,0.00013864,2]
[401069216,1767901835780,-500.0,0.00013864,2]
[401069217,1767901835790,-587.0,0.00013938,2]
[401069218,1767901835800,-2351.0,0.00013982,2]
[401069219,1767901835810,-166.66,0.00014044,2]
[401069220,1767901835819,-1093.33,0.00014379,2]
[401069221,1767901835829,-500.0,0.00014379,2]
[401069222,1767901835838,-196.64,0.00014384,2]
[401069223,1767901835847,-250.0,0.00014384,2]
[401069224,1767901835857,-11496.47323075,0.00014418,2]
[401069225,1767901835869,-495.31677303,0.00014418,2]
[401069279,1767901838572,-1000.0,0.00011736,2]
[401069281,1767901838586,-1000.0,0.00013204,2]
[401069283,1767901838596,-1080.38914681,0.00014418,2]
[401069285,1767901838606,-256.33918708,0.00014433,2]
[401069287,1767901838615,-1000.0,0.00014671,2]
[401069289,1767901838625,-151.0,0.00014691,2]
[401069291,1767901838633,-151.0,0.00014691,2]
[401069293,1767901838643,-151.0,0.00014691,2]
[401069295,1767901838652,-151.0,0.00014691,2]
[401069297,1767901838662,-151.0,0.00014691,2]
[401069299,1767901838672,-151.0,0.00014691,2]
[401069301,1767901838681,-151.0,0.00014691,2]
[401069303,1767901838691,-152.0,0.00014691,2]
[401069305,1767901838701,-158.0,0.00014691,2]
[401069307,1767901838710,-151.0,0.00014691,2]
[401069309,1767901838720,-152.0,0.00014691,2]
[401069311,1767901838729,-151.0,0.00014691,2]
[401069313,1767901838739,-152.0,0.00014691,2]
[401069315,1767901838748,-151.0,0.00014691,2]
[401069317,1767901838757,-557.37957025,0.00014732,2]
[401069319,1767901838767,-501.08291115,0.00014763,2]
[401069321,1767901838778,-500.0,0.00014763,2]
[401069323,1767901838787,-500.0,0.00014763,2]
[401069325,1767901838801,-500.0,0.00014763,2]
[401069327,1767901838810,-500.0,0.00014763,2]
[401069329,1767901838820,-500.0,0.00014763,2]
[401069331,1767901838829,-500.0,0.00014763,2]
[401069333,1767901838839,-500.0,0.00014763,2]
[401069335,1767901838848,-225.04435093,0.00014763,2]
[401069337,1767901838858,-500.0,0.00014763,2]
[401069339,1767901838868,-500.0,0.00014763,2]
[401069341,1767901838878,-500.0,0.00014763,2]
[401069343,1767901838888,-489.61533507,0.00014763,2]
[401069345,1767901838898,-500.0,0.00014763,2]
[401069347,1767901838908,-500.0,0.00014763,2]
[401069349,1767901838919,-500.0,0.00014763,2]
[401069351,1767901838930,-500.0,0.00014763,2]
[401069353,1767901838939,-500.51555347,0.00014763,2]
[401069355,1767901838949,-500.0,0.00014763,2]
[401069357,1767901838959,-500.0,0.00014763,2]
[401069359,1767901838969,-196.64,0.00015068,2]
[401069361,1767901838981,-500.0,0.00015096,2]
[401069363,1767901838989,-13072.17915059,0.00015114,2]
[401069365,1767901839000,-256.33918708,0.00015299,2]
[401069367,1767901839008,-823.0,0.00015307,2]
[401069369,1767901839016,-1000.0,0.0001531,2]
[401069371,1767901839025,-802.24106746,0.0001531,2]
[401069373,1767901839032,-1005.81602002,0.0001531,2]
[401069375,1767901839042,-1000.0,0.0001531,2]
[401069377,1767901839051,-1000.0,0.0001531,2]
[401069379,1767901839060,-799.73155764,0.0001531,2]
[401069381,1767901839069,-1000.0,0.0001531,2]
[401069383,1767901839078,-633.20600999,0.0001531,2]
[401069385,1767901839088,-1000.0,0.0001531,2]
[401069387,1767901839098,-879.40330386,0.0001531,2]
[401069389,1767901839107,-1000.0,0.0001531,2]
[401069391,1767901839117,-1000.0,0.0001531,2]
[401069393,1767901839126,-1000.0,0.0001531,2]
[401069395,1767901839135,-3292.0,0.0001538,2]
[401069396,1767901839144,-2443.11794413,0.0001564,2]
[401069398,1767901839154,-196.64,0.00015753,2]
[401069400,1767901839163,-557.37957025,0.00015788,2]
[401069402,1767901839171,-13072.17915059,0.00015811,2]
[401069404,1767901839180,-1500.0,0.00015858,2]
[401069406,1767901839189,-876.30281883,0.00015858,2]
[401069408,1767901839198,-1500.0,0.00015858,2]
[401069410,1767901839206,-1500.0,0.00015858,2]
[401069412,1767901839215,-1321.61952287,0.00015858,2]
[401069414,1767901839224,-1500.0,0.00015858,2]
[401069416,1767901839233,-1500.0,0.00015858,2]
[401069418,1767901839241,-1500.0,0.00015858,2]
[401069420,1767901839250,-585.83,0.00015917,2]
[401069422,1767901839260,-1000.0,0.00015918,2]
[401069424,1767901839270,-271.8,0.00015938,2]
[401069426,1767901839280,-500.0,0.00015999,2]
[401069428,1767901839290,-500.0,0.00015999,2]
[401069430,1767901839299,-500.0,0.00015999,2]
[401069432,1767901839308,-500.0,0.00015999,2]
[401069434,1767901839317,-500.0,0.00015999,2]
[401069436,1767901839326,-500.0,0.00015999,2]
[401069438,1767901839335,-157.72323008,0.00016076,2]
[401069440,1767901839345,-500.0,0.00016099,2]
[401069441,1767901839354,-500.0,0.00016099,2]
[401069443,1767901839363,-500.0,0.00016099,2]
[401069445,1767901839372,-500.0,0.00016099,2]
[401069447,1767901839381,-575.35243908,0.00016099,2]
[401069449,1767901839391,-500.0,0.00016099,2]
[401069451,1767901839401,-9999.99,0.00016116,2]
[401069453,1767901839411,-1000.0,0.00016138,2]
[401069455,1767901839419,-256.33918708,0.00016166,2]
[401069457,1767901839429,-229.07945925,0.00016219,2]
[401069459,1767901839439,-150.0,0.00016219,2]
[401069461,1767901839447,-500.0,0.00016219,2]
[401069463,1767901839456,-150.0,0.00016219,2]
[401069465,1767901839465,-150.0,0.00016219,2]
[401069466,1767901839474,-159.6010049,0.00016219,2]
[401069467,1767901839484,-150.0,0.00016219,2]
[401069468,1767901839492,-150.0,0.00016219,2]
[401069469,1767901839501,-150.0,0.00016219,2]
[401069470,1767901839511,-150.0,0.00016219,2]
[401069471,1767901839520,-500.0,0.00016219,2]
[401069472,1767901839529,-500.0,0.00016219,2]
[401069473,1767901839538,-150.0,0.00016219,2]
[401069474,1767901839547,-500.0,0.00016219,2]
[401069475,1767901839556,-150.0,0.00016219,2]
[401069476,1767901839565,-2751.0,0.00016219,2]
[401069477,1767901839575,-500.0,0.00016219,2]
[401069478,1767901839584,-500.0,0.00016219,2]
[401069479,1767901839593,-500.0,0.00016219,2]
[401069480,1767901839603,-500.0,0.00016219,2]
[401069481,1767901839613,-150.0,0.00016219,2]
[401069482,1767901839622,-150.0,0.00016219,2]
[401069483,1767901839632,-150.0,0.00016219,2]
[401069484,1767901839641,-214.12448155,0.00016219,2]
[401069485,1767901839650,-500.0,0.00016219,2]
[401069486,1767901839659,-500.0,0.00016219,2]
[401069488,1767901839668,-500.0,0.00016219,2]
[401069490,1767901839677,-150.0,0.00016274,2]
[401069492,1767901839686,-500.0,0.00016274,2]
[401069494,1767901839695,-150.0,0.00016274,2]
[401069496,1767901839705,-150.0,0.00016274,2]
[401069498,1767901839714,-150.0,0.00016274,2]
[401069500,1767901839723,-150.0,0.00016274,2]
[401069502,1767901839732,-150.0,0.00016274,2]
[401069504,1767901839741,-500.0,0.00016274,2]
[401069506,1767901839750,-500.0,0.00016274,2]
[401069508,1767901839760,-150.0,0.00016274,2]
[401069509,1767901839770,-500.0,0.00016274,2]
[401069510,1767901839779,-150.0,0.00016274,2]
[401069511,1767901839789,-2751.0,0.00016274,2]
[401069512,1767901839798,-500.0,0.00016274,2]
[401069513,1767901839807,-500.0,0.00016274,2]
[401069514,1767901840098,-500.0,0.00016274,2]
[401069515,1767901840109,-500.0,0.00016274,2]
[401069516,1767901840118,-150.0,0.00016274,2]
[401069517,1767901840127,-150.0,0.00016274,2]
[401069518,1767901840136,-150.0,0.00016274,2]
[401069519,1767901840145,-500.0,0.00016274,2]
[401069520,1767901840154,-500.0,0.00016274,2]
[401069521,1767901840163,-500.0,0.00016274,2]
[401069522,1767901840172,-200.0,0.00016289,2]
[401069523,1767901840181,-153.80351225,0.000163,2]
[401069524,1767901840191,-153.80351225,0.000163,2]
[401069525,1767901840200,-200.0,0.00016329,2]
[401069526,1767901840209,-500.0,0.00016329,2]
[401069527,1767901840219,-150.0,0.00016329,2]
[401069528,1767901840228,-150.0,0.00016329,2]
[401069529,1767901840237,-150.0,0.00016329,2]
[401069530,1767901840247,-150.0,0.00016329,2]
[401069531,1767901840256,-150.0,0.00016329,2]
[401069532,1767901840265,-500.0,0.00016329,2]
[401069533,1767901840275,-500.0,0.00016329,2]
[401069534,1767901840284,-150.0,0.00016329,2]
[401069535,1767901840294,-500.0,0.00016329,2]
[401069536,1767901840303,-150.0,0.00016329,2]
[401069537,1767901840312,-2751.0,0.00016329,2]
[401069538,1767901840322,-200.0,0.00016329,2]
[401069539,1767901840331,-500.0,0.00016329,2]
[401069540,1767901840340,-500.0,0.00016329,2]
[401069541,1767901840349,-500.0,0.00016329,2]
[401069542,1767901840359,-154.16094674,0.00016329,2]
[401069543,1767901840368,-150.0,0.00016329,2]
[401069544,1767901840378,-150.0,0.00016329,2]
[401069545,1767901840388,-500.0,0.00016329,2]
[401069546,1767901840398,-530.66926965,0.00016329,2]
[401069547,1767901840408,-204.23035244,0.00016329,2]
[401069548,1767901840417,-276.22792842,0.00016383,2]
[401069549,1767901840427,-157.21654538,0.00016383,2]
[401069550,1767901840436,-161.35165335,0.00016383,2]
[401069551,1767901840447,-150.0,0.00016383,2]
[401069552,1767901840456,-217.19962447,0.00016383,2]
[401069553,1767901840465,-455.28552746,0.00016383,2]
[401069554,1767901840475,-500.0,0.00016383,2]
[401069555,1767901840483,-150.0,0.00016383,2]
[401069556,1767901840492,-500.0,0.00016383,2]
[401069557,1767901840501,-150.0,0.00016383,2]
[401069558,1767901840511,-2751.0,0.00016383,2]
[401069559,1767901840522,-500.0,0.00016383,2]
[401069560,1767901840532,-500.0,0.00016383,2]
[401069561,1767901840541,-396.98457547,0.00016383,2]
[401069562,1767901840551,-155.60141278,0.00016383,2]
[401069563,1767901840560,-261.09943952,0.00016383,2]
[401069564,1767901840569,-162.0,0.000164,2]
[401069565,1767901840579,-833.0,0.000164,2]
[401069566,1767901840588,-162.0,0.000164,2]
[401069567,1767901840598,-162.0,0.000164,2]
[401069568,1767901840607,-162.0,0.000164,2]
[401069569,1767901840616,-162.0,0.000164,2]
[401069570,1767901840625,-833.0,0.000164,2]
[401069571,1767901840635,-833.0,0.000164,2]
[401069572,1767901840644,-833.0,0.000164,2]
[401069573,1767901840653,-833.0,0.000164,2]
[401069574,1767901840662,-162.0,0.000164,2]
[401069575,1767901840671,-162.0,0.000164,2]
[401069576,1767901840680,-833.0,0.000164,2]
[401069577,1767901840689,-833.0,0.000164,2]
[401069578,1767901840699,-162.0,0.000164,2]
[401069579,1767901840709,-162.0,0.000164,2]
[401069580,1767901840718,-2000.0,0.00016406,2]
[401069581,1767901840727,-2000.0,0.00016406,2]
[401069582,1767901840736,-487.99755872,0.00016406,2]
[401069583,1767901840745,-2000.0,0.00016406,2]
[401069584,1767901840754,-476.3156368,0.00016406,2]
[401069585,1767901840764,-2000.0,0.00016406,2]
[401069586,1767901840776,-500.0,0.00016437,2]
[401069587,1767901840785,-500.0,0.00016437,2]
[401069588,1767901840794,-500.0,0.00016437,2]
[401069589,1767901840804,-500.0,0.00016437,2]
[401069590,1767901840812,-1093.33,0.00016437,2]
[401069591,1767901840822,-500.0,0.00016437,2]
[401069592,1767901840832,-585.83,0.00016437,2]
[401069593,1767901840842,-500.0,0.00016437,2]
[401069594,1767901840853,-3868.4,0.00016438,2]
[401069595,1767901840862,-500.0,0.00016438,2]
[401069596,1767901840871,-596.01736807,0.00016438,2]
[401069597,1767901840880,-596.01736807,0.00016438,2]
[401069598,1767901840890,-596.01736807,0.00016438,2]
[401069599,1767901840899,-596.01736807,0.00016438,2]
[401069600,1767901840908,-596.01736807,0.00016438,2]
[401069601,1767901840920,-596.01736807,0.00016438,2]
[401069602,1767901840931,-596.01736807,0.00016438,2]
[401069603,1767901840940,-596.01736807,0.00016438,2]
[401069604,1767901840949,-596.01736807,0.00016438,2]
[401069605,1767901840959,-596.01736807,0.00016438,2]
[401069606,1767901840968,-596.01736807,0.00016438,2]
[401069607,1767901840978,-596.01736807,0.00016438,2]
[401069608,1767901840988,-596.01736807,0.00016438,2]
[401069609,1767901840998,-596.01736807,0.00016438,2]
[401069610,1767901841007,-596.01736807,0.00016438,2]
[401069611,1767901841016,-596.01736807,0.00016438,2]
[401069612,1767901841026,-596.01736807,0.00016438,2]
[401069613,1767901841038,-596.01736807,0.00016438,2]
[401069614,1767901841047,-596.01736807,0.00016438,2]
[401069615,1767901841057,-596.01736807,0.00016438,2]
[401069616,1767901841066,-596.01736807,0.00016438,2]
[401069617,1767901841077,-596.01736807,0.00016438,2]
[401069618,1767901841087,-596.01736807,0.00016438,2]
[401069619,1767901841096,-596.01736807,0.00016438,2]
[401069620,1767901841105,-596.01736807,0.00016438,2]
[401069621,1767901841116,-596.01736807,0.00016438,2]
[401069622,1767901841126,-596.01736807,0.00016438,2]
[401069623,1767901841136,-596.01736807,0.00016438,2]
[401069624,1767901841145,-596.01736807,0.00016438,2]
[401069625,1767901841154,-596.01736807,0.00016438,2]
[401069626,1767901841163,-149.19234618,0.00016438,2]
[401069627,1767901841204,-446.82502189,0.00016438,2]
[401069628,1767901841213,-596.01736807,0.00016438,2]
[401069629,1767901841222,-262.05817791,0.00016438,2]
[401069630,1767901841234,-333.95919016,0.00016438,2]
[401069631,1767901841243,-596.01736807,0.00016438,2]
[401069632,1767901841251,-596.01736807,0.00016438,2]
[401069633,1767901841260,-596.01736807,0.00016438,2]
[401069634,1767901841272,-596.01736807,0.00016438,2]
[401069635,1767901841285,-596.01736807,0.00016438,2]
[401069636,1767901841295,-596.01736807,0.00016438,2]
[401069637,1767901841303,-596.01736807,0.00016438,2]
[401069638,1767901841313,-596.01736807,0.00016438,2]
[401069639,1767901841322,-596.01736807,0.00016438,2]
[401069640,1767901841333,-596.01736807,0.00016438,2]
[401069641,1767901841342,-596.01736807,0.00016438,2]
[401069642,1767901841351,-596.01736807,0.00016438,2]
[401069643,1767901841360,-596.01736807,0.00016438,2]
[401069644,1767901841370,-596.01736807,0.00016438,2]
[401069645,1767901841379,-596.01736807,0.00016438,2]
[401069646,1767901841388,-596.01736807,0.00016438,2]
[401069647,1767901841398,-596.01736807,0.00016438,2]
[401069648,1767901841407,-596.01736807,0.00016438,2]
[401069649,1767901841417,-596.01736807,0.00016438,2]
[401069650,1767901841428,-596.01736807,0.00016438,2]
[401069651,1767901841438,-596.01736807,0.00016438,2]
[401069652,1767901841447,-596.01736807,0.00016438,2]
[401069653,1767901841456,-596.01736807,0.00016438,2]
[401069654,1767901841465,-596.01736807,0.00016438,2]
[401069655,1767901841474,-596.01736807,0.00016438,2]
[401069656,1767901841484,-596.01736807,0.00016438,2]
[401069657,1767901841494,-596.01736807,0.00016438,2]
[401069658,1767901841503,-596.01736807,0.00016438,2]
[401069659,1767901841512,-596.01736807,0.00016438,2]
[401069660,1767901841522,-596.01736807,0.00016438,2]
[401069661,1767901841531,-596.01736807,0.00016438,2]
[401069662,1767901841541,-596.01736807,0.00016438,2]
[401069663,1767901841550,-7038.31959571,0.00016438,2]
[401069664,1767901841560,-7038.31959571,0.00016438,2]
[401069665,1767901841569,-7038.31959571,0.00016438,2]
[401069666,1767901841578,-6513.68098639,0.00016438,2]
[401069667,1767901841634,-524.63860932,0.00016438,2]
[401069668,1767901841643,-327.87620315,0.00016438,2]
[401069669,1767901841654,-465.16280073,0.00016438,2]
[401069670,1767901841666,-2890.27613519,0.00016438,2]
[401069671,1767901842345,-152.0,0.00014691,2]
[401069672,1767901842355,-3355.00445664,0.00016438,2]
[401069673,1767901842365,-7038.31959571,0.00016438,2]
[401069674,1767901842374,-7038.31959571,0.00016438,2]
[401069675,1767901842383,-7038.31959571,0.00016438,2]
[401069676,1767901842392,-7038.31959571,0.00016438,2]
[401069677,1767901842402,-7038.31959571,0.00016438,2]
[401069678,1767901842411,-7038.31959571,0.00016438,2]
[401069679,1767901842422,-7038.31959571,0.00016438,2]
[401069680,1767901842431,-7038.31959571,0.00016438,2]
[401069681,1767901842440,-7038.31959571,0.00016438,2]
[401069682,1767901842450,-7038.31959571,0.00016438,2]
[401069683,1767901842459,-7038.31959571,0.00016438,2]
[401069684,1767901842471,-7038.31959571,0.00016438,2]
[401069685,1767901842481,-7038.31959571,0.00016438,2]
[401069686,1767901842491,-7038.31959571,0.00016438,2]
[401069687,1767901842500,-7038.31959571,0.00016438,2]
[401069688,1767901842509,-7038.31959571,0.00016438,2]
[401069689,1767901842518,-7038.31959571,0.00016438,2]
[401069690,1767901842528,-7038.31959571,0.00016438,2]
[401069692,1767901842537,-7038.31959571,0.00016438,2]
[401069694,1767901842546,-157.03274317,0.00016438,2]
[401069696,1767901842555,-171.05172936,0.00016438,2]
[401069697,1767901842565,-150.0,0.00016438,2]
[401069698,1767901842574,-289.85184336,0.00016438,2]
[401069699,1767901842583,-224.78328857,0.00016438,2]
[401069700,1767901842592,-2751.0,0.00016438,2]
[401069701,1767901842601,-500.0,0.00016438,2]
[401069702,1767901842611,-500.0,0.00016438,2]
[401069703,1767901842620,-196.64,0.00016438,2]
[401069705,1767901842629,-800.0,0.00016438,2]
[401069707,1767901842638,-500.0,0.00016493,2]
[401069709,1767901842647,-250.0,0.00016493,2]
[401069710,1767901842656,-2751.0,0.00016493,2]
[401069712,1767901842666,-500.0,0.00016493,2]
[401069714,1767901842675,-500.0,0.00016493,2]
[401069716,1767901842684,-13072.17915059,0.00016507,2]
[401069717,1767901842693,-1000.0,0.00016515,2]
[401069718,1767901842702,-395.08159117,0.00016548,2]
[401069719,1767901842710,-2751.0,0.00016548,2]
[401069720,1767901842721,-500.0,0.00016548,2]
[401069721,1767901842730,-500.0,0.00016548,2]
[401069722,1767901842739,-1000.0,0.00016564,2]
[401069723,1767901842748,-2751.0,0.00016603,2]
[401069724,1767901842757,-500.0,0.00016603,2]
[401069725,1767901842766,-281.3806178,0.00016603,2]
[401069726,1767901842775,-500.0,0.00016608,2]
[401069727,1767901842785,-500.0,0.00016608,2]
[401069728,1767901842794,-500.0,0.00016608,2]
[401069729,1767901842803,-500.0,0.00016608,2]
[401069730,1767901842813,-500.0,0.00016608,2]
[401069731,1767901842822,-157.72323008,0.00016612,2]
[401069732,1767901842831,-1000.0,0.00016635,2]
[401069733,1767901842840,-2751.0,0.00016657,2]
[401069734,1767901842849,-500.0,0.00016657,2]
[401069735,1767901842858,-153.80351225,0.000167,2]
[401069736,1767901842868,-3868.4,0.00016712,2]
[401069737,1767901842877,-2751.0,0.00016712,2]
[401069738,1767901842887,-500.0,0.00016712,2]
[401069739,1767901842896,-833.0,0.0001672,2]
[401069740,1767901842905,-833.0,0.0001672,2]
[401069741,1767901842915,-2879.33418479,0.0001672,2]
[401069742,1767901842927,-1119.21541804,0.0001672,2]
[401069743,1767901842935,-979.88092702,0.0001672,2]
[401069744,1767901842943,-1090.43412186,0.0001672,2]
[401069745,1767901842951,-833.0,0.0001672,2]
[401069746,1767901842959,-552.0,0.0001672,2]
[401069747,1767901842969,-162.0,0.0001672,2]
[401069748,1767901842978,-162.0,0.0001672,2]
[401069749,1767901842986,-833.0,0.0001672,2]